[Event "4NCL 2nd Div 2023-24"]
[Site "Daventry"]
[Date "2024.05.05"]
[Round "10.9"]
[White "Makkar, Rajat"]
[Black "Taylor, Martin R"]
[Result "1/2-1/2"]
[ECO "C50"]
[WhiteElo "2455"]
[BlackElo "2366"]
[Annotator "TA"]
[PlyCount "58"]
[EventDate "2023.11.11"]
[EventType "team-tourn"]
[EventCountry "ENG"]
[SourceTitle "playchess.com"]
[Source "ChessBase"]
[SourceQuality "1"]
[TimeControl "40/6000+30:3000+30"]

{[%evp 14,58,25,31,29,0,0,0,13,14,8,0,0,0,12,6,55,-12,-16,-22,-27,-31,0,0,1,15,20,4,11,15,26,32,34,-7,0,-20,-10,-22,-5,-21,0,-28,0,0,-15,-92,-85]} 1. e4 {[%emt 0:00:13]} e5 {[%emt 0:00:16]} 2. Nf3 {[%emt 0:00:10]} Nc6 {[%emt 0:00:04]} 3. Bc4 {[%emt 0:00:12]} Be7 {[%emt 0:00:28]} 4. d4 {[%emt 0:00:34]} exd4 {[%emt 0:00:23]} 5. Nxd4 {[%emt 0:00:07]} d6 {[%emt 0:01:07]} 6. Nc3 {[%emt 0:01:35]} Nf6 {[%emt 0:00:18]} 7. O-O {[%emt 0:00:12]} O-O {[%emt 0:00:14]} 8. Bf4 {[%emt 0:00:06]} Nd7 {[%emt 0:06:50]} 9. Bxf7+ {[%emt 0:12:41]} Rxf7 {[%emt 0:11:47]} 10. Ne6 {[%emt 0:00:26]} Qe8 {[%emt 0:03:32] [#] And now ...Bd8 would win. The position is equal.} 11. Nxc7 {[%emt 0:10:12]} Qd8 {[%emt 0:04:01]} 12. Nxa8 {[%emt 0:03:14]} Rxf4 {[%emt 0:03:49]} 13. Nc7 {[%emt 0:00:34] Strongly threatening Ne6.} Nb6 {[%emt 0:13:09]} (13... Qxc7 $2 {loses.} 14. Nd5 Qd8 15. Nxf4 $18) 14. N7d5 {[%emt 0:04:19]} Rh4 {[%emt 0:07:46]} (14... Nxd5 $11 {was preferrable.} 15. Qxd5+ Kh8) 15. Nxb6 {[%emt 0:28:07]} ({Better is} 15. Nxe7+ $14 Qxe7 16. f4) 15... Qxb6 $11 {[%emt 0:01:53]} 16. Qd5+ {[%emt 0:01:52]} Kf8 {[%emt 0:02:24][%mdl 1024] Black has compensation.} 17. b3 {[%emt 0:08:53]} Ne5 {[%emt 0:22:43][%cal Bc6e5,Be5g4,Bg4f6][%mdl 32]} 18. Rae1 {[%emt 0:05:25]} Ng4 {[%emt 0:07:33]} 19. h3 {[%emt 0:02:05] Really sharp!} Nf6 {[%emt 0:01:47]} 20. Qd3 {[%emt 0:02:02]} Bd7 {[%emt 0:03:23]} 21. Re3 {[%emt 0:06:40]} Rh5 {[%emt 0:02:48]} 22. Rfe1 {[%emt 0:04:02]} Bc6 {[%emt 0:06:16]} 23. Qe2 {[%emt 0:18:19][%cal Oc3d5] [#] Hoping for Nd5!} Re5 {[%emt 0:01:56]} 24. Qd3 {[%emt 0:00:00]} Qc5 {[%emt 0:01:47]} 25. Kh1 {[%emt 0:00:00][%cal Oa2a3]} g5 {[%emt 0:00:48]} 26. Nd1 {[%emt 0:00:00]} b5 {[%emt 0:00:49]} 27. c4 {[%emt 0:00:00]} bxc4 {[%emt 0:00:57]} 28. bxc4 {[%emt 0:00:00]} Bd8 {[%emt 0:01:03]} 29. f3 {[%emt 0:01:52]} (29. Nc3 $11) 29... Nh5 {[%emt 0:00:26] Weighted Error Value: White=0.17 (very precise) /Black=0.09 (flawless) .  Mistake:       	White=2     	Black=1      Inaccurate:     	White=2     	Black=2      OK:         	White=10    	Black=10     Best:        	---       	Black=1} 1/2-1/2

[Event "4NCL 2nd Div 2023-24"]
[Site "Daventry"]
[Date "2024.05.05"]
[Round "10.10"]
[White "Merry, Alan B"]
[Black "Rendle, Thomas E"]
[Result "1/2-1/2"]
[ECO "D45"]
[WhiteElo "2439"]
[BlackElo "2380"]
[Annotator "TA"]
[PlyCount "52"]
[EventDate "2023.11.11"]
[EventType "team-tourn"]
[EventCountry "ENG"]
[SourceTitle "playchess.com"]
[Source "ChessBase"]
[SourceQuality "1"]
[TimeControl "40/6000+30:3000+30"]

{[%evp 20,52,0,5,16,18,8,0,13,12,33,0,0,0,35,27,30,35,64,39,55,47,55,27,52,29,45,28,27,29,32,0,0,-54,-56]} 1. d4 {[%emt 0:00:03]} d5 {[%emt 0:00:07]} 2. c4 {[%emt 0:00:03]} c6 {[%emt 0:00:06]} 3. e3 {[%emt 0:00:02]} Nf6 {[%emt 0:01:45]} 4. Nc3 {[%emt 0:00:04]} e6 {[%emt 0:00:08]} 5. Nf3 {[%emt 0:00:05]} Nbd7 {[%emt 0:00:14]} 6. Qc2 {[%emt 0:00:04]} Bd6 {[%emt 0:00:56]} 7. b3 {[%emt 0:00:04]} O-O {[%emt 0:00:20]} 8. Be2 {[%emt 0:00:02]} b6 {[%emt 0:00:12]} 9. O-O {[%emt 0:00:04]} Bb7 {[%emt 0:00:17]} 10. Rd1 {[%emt 0:01:00]} Qe7 {[%emt 0:08:16]} 11. Bb2 {[%emt 0:01:46]} Rfd8 {[%emt 0:02:23]} 12. Rac1 {[%emt 0:00:22]} Rac8 {[%emt 0:00:24]} 13. g3 {[%emt 0:18:07]} c5 {[%emt 0:14:49] The position is equal.} 14. cxd5 {[%emt 0:00:50]} (14. dxc5 {is more complex.} Bxc5 15. cxd5 Nxd5 16. Nxd5 Bxd5 17. Qc3) 14... exd5 {[%emt 0:00:53]} 15. Qb1 {[%emt 0:06:28]} a6 {[%emt 0:04:51]} 16. a4 {[%emt 0:05:08]} Qf8 {[%emt 0:11:27]} 17. Bf1 {[%emt 0:00:49][%cal Be2f1,Bf1g2,Bg2f3][%mdl 32]} g6 {[%emt 0:06:28]} 18. Bg2 {[%emt 0:01:35]} Qh6 {[%emt 0:01:20]} 19. dxc5 {[%emt 0:21:11]} bxc5 {[%emt 0:08:28]} 20. Nh4 {[%emt 0:10:33][%cal Rc3d5]} Qh5 {[%emt 0:13:10]} 21. Qd3 {[%emt 0:17:10][%cal Rg2d5]} Be5 {[%emt 0:09:11]} 22. Bf3 {[%emt 0:09:14]} Qh6 {[%emt 0:01:05][%cal Of6e4]} 23. Qe2 {[%emt 0:02:27][%cal Rc3d5]} Qg7 {[%emt 0:08:36]} 24. Rc2 {[%emt 0:05:00][%cal Rc3d5]} Nf8 {[%emt 0:04:42]} 25. Bg2 {[%emt 0:01:57]} Ne4 $1 {[%emt 0:04:05]} 26. Nb1 {[%emt 0:05:43]} (26. Nxe4 $11 dxe4 27. Ba3) 26... Bxb2 {[%emt 0:01:12] Weighted Error Value: White=0.15 (very precise) /Black=0.08 (flawless) .  Mistake:       	White=1     	---        Inaccurate:     	White=3     	Black=2      OK:         	White=4     	Black=7      Strong:       	---       	Black=1} 1/2-1/2

[Event "4NCL 2nd Div 2023-24"]
[Site "Daventry"]
[Date "2024.05.05"]
[Round "10.11"]
[White "Bremner, Adam"]
[Black "Pigott, John C"]
[Result "1-0"]
[ECO "D41"]
[WhiteElo "2187"]
[BlackElo "2299"]
[Annotator "TA"]
[PlyCount "67"]
[EventDate "2023.11.11"]
[EventType "team-tourn"]
[EventCountry "ENG"]
[SourceTitle "playchess.com"]
[Source "ChessBase"]
[SourceQuality "1"]
[TimeControl "40/6000+30:3000+30"]

{[%evp 26,67,26,13,18,0,11,2,12,0,0,0,0,0,0,0,0,0,0,0,0,-9,5,-22,0,0,520,115,156,145,142,150,371,379,943,928,908,883,838,608,569,528,551,536]} 1. d4 {[%emt 0:00:26]} Nf6 {[%emt 0:00:42]} 2. c4 {[%emt 0:00:16]} e6 {[%emt 0:00:09]} 3. Nf3 {[%emt 0:00:16]} d5 {[%emt 0:00:10]} 4. Nc3 {[%emt 0:00:27]} c5 {[%emt 0:00:11]} 5. cxd5 {[%emt 0:00:10]} Nxd5 {[%emt 0:00:06]} 6. e4 {[%emt 0:00:04]} Nxc3 {[%emt 0:00:06]} 7. bxc3 {[%emt 0:00:04]} cxd4 {[%emt 0:00:06]} 8. cxd4 {[%emt 0:00:04]} Bb4+ {[%emt 0:00:09]} 9. Bd2 {[%emt 0:00:05]} Bxd2+ {[%emt 0:00:06]} 10. Qxd2 {[%emt 0:00:04]} O-O {[%emt 0:00:09]} 11. Bc4 {[%emt 0:00:08]} Nd7 {[%emt 0:00:08]} 12. O-O {[%emt 0:00:07]} b6 {[%emt 0:00:04]} 13. Rad1 {[%emt 0:00:06]} Bb7 {[%emt 0:00:06]} 14. Rfe1 {[%emt 0:00:04]} Rc8 {[%emt 0:00:05]} 15. Bb3 {[%emt 0:00:04]} Re8 {[%emt 0:00:26]} 16. h3 {[%emt 0:00:05]} Qf6 {[%emt 0:07:32] The position is equal.} 17. Re3 {[%emt 0:00:08]} Qf4 {[%emt 0:04:45]} 18. Qe2 {[%emt 0:00:12]} Nf6 {[%emt 0:08:18][%cal Rb7e4]} 19. d5 {[%emt 0:09:24]} exd5 {[%emt 0:25:30]} 20. exd5 {[%emt 0:02:06] aiming for Ne5.} Rxe3 {[%emt 0:00:20]} 21. fxe3 {[%emt 0:02:37]} Qb4 {[%emt 0:01:22]} 22. d6 {[%emt 0:12:29]} Qc5 {[%emt 0:18:29] Repels Ng5} 23. Rd4 {[%emt 0:13:00]} b5 {[%emt 0:13:58]} (23... Rd8 {simplifies} 24. Qc4 Qxc4 25. Rxc4 Rxd6 26. Ne5 h6) 24. Qe1 {[%emt 0:13:07]} Rd8 {[%emt 0:09:04]} 25. Qg3 {[%emt 0:07:21] Black must now prevent Qe5.} Ne4 $2 {[%emt 0:10:01][%mdl 8192] [#]} (25... Bxf3 $11 {and Black has nothing to worry.} 26. Qxf3 h6) 26. Qh4 $2 {[%emt 0:04:02]} (26. Qf4 $1 $18 {[%cal Rf4f7] is the precise move to win.} Nxd6 27. Ng5 (27. Rxd6 Qxd6 28. Qxf7+ Kh8 $18)) 26... g5 {[%emt 0:04:03]} (26... Rxd6 $2 27. Qe7 (27. Rxe4 Bxe4 28. Qxe4 Rf6 $18) 27... Qc1+ 28. Kh2 $18) 27. Qh5 {[%emt 0:09:17] Some like it hot} Rd7 {[%emt 0:01:02] [#]} 28. Qg4 $1 $40 {[%emt 0:01:41][%csl LRd7,LRe4][%mdl 128] Black is in trouble.} Qc1+ $2 {[%emt 0:05:50] This costs Black the game.} (28... Rxd6 $16 {was necessary.} 29. Rxe4 Bxe4 30. Qxe4 Rf6) 29. Kh2 $18 {[%emt 0:00:56] Active counter play!} Qxe3 $2 {[%emt 0:00:06]} (29... Rxd6 30. Nxg5 (30. Rxe4 Bxe4 31. Qxe4 Qc7 $18) 30... Nf6) 30. Rxe4 {[%emt 0:00:16] White is clearly winning.} (30. Qxd7 Qf4+ 31. Kg1 Qe3+ 32. Kh1 Ng3+ 33. Kh2 Nf1+ 34. Kh1 Ng3+ 35. Kh2 Nf1+ 36. Kh1 Ng3+ $11) 30... Bxe4 {[%emt 0:00:05]} 31. Qxd7 {[%emt 0:00:24]} Qf4+ {[%emt 0:00:19]} 32. Kh1 {[%emt 0:03:09] Qc8+ would now be deadly.} Bxf3 {[%emt 0:00:20]} 33. Qc8+ {[%emt 0:00:11]} ({Stronger than} 33. gxf3 Qxf3+ 34. Kg1 Qg3+ 35. Kf1 Qd3+ 36. Kf2 Qd2+ 37. Kf3 Qf4+ 38. Ke2 Qe4+ 39. Kd2 Qd4+ 40. Ke2 Qe4+ 41. Kd2 Qd4+ 42. Kc2 Qe4+ 43. Kd2 $11) 33... Kg7 {[%emt 0:00:09]} 34. Qc3+ {[%emt 0:00:05] Weighted Error Value: White=0.61/Black=0.62.  Loses game:     	---       	Black=2      Missed win:     	White=1     	---        Mistake:       	---       	Black=1      Inaccurate:     	White=1     	Black=1      OK:         	White=3     	Black=8      Best:        	White=3     	---        Strong:       	White=1     	---} (34. gxf3 Qxf3+ 35. Kg1 Qg3+ 36. Kf1 (36. Kh1 Qe1+ 37. Kg2 Qe2+ 38. Kg1 Qe1+ 39. Kg2 Qe2+ 40. Kg1 Qe1+ 41. Kg2 $11) 36... Qxd6 $14) 1-0

[Event "4NCL 2nd Div 2023-24"]
[Site "Daventry"]
[Date "2024.05.05"]
[Round "10.12"]
[White "Rogers, Jonathan W"]
[Black "Foisor, Mihaela-Veronica"]
[Result "1-0"]
[ECO "D02"]
[WhiteElo "2332"]
[BlackElo "2178"]
[Annotator "TA"]
[PlyCount "117"]
[EventDate "2023.11.11"]
[EventType "team-tourn"]
[EventCountry "ENG"]
[SourceTitle "playchess.com"]
[Source "ChessBase"]
[SourceQuality "1"]
[TimeControl "40/6000+30:3000+30"]

{[%evp 22,117,106,112,107,108,112,78,54,55,77,63,107,68,88,87,251,239,239,226,245,156,310,220,227,231,221,220,295,284,307,309,320,272,277,167,169,165,173,170,243,248,239,207,346,354,604,576,1395,1395,29938,12851,12843,4134,1369,1206,1387,656,675,644,29971,29971,29975,602,29973,29973,29975,29976,29976,29977,29977,29978,29978,29979,29979,29980,29982,29983,29984,29985,29985,29986,29986,29987,29987,29988,29988,29988,29991,29992,29992,29993,29993,29994,29994,29995,29997,29998]} 1. d4 {[%emt 0:00:03]} d5 {[%emt 0:24:36]} 2. Nf3 {[%emt 0:00:56]} Nf6 {[%emt 0:00:21]} 3. Bf4 {[%emt 0:00:21]} Bf5 {[%emt 0:01:56]} 4. e3 {[%emt 0:01:44]} e6 {[%emt 0:02:14]} 5. Ne5 {[%emt 0:09:26]} h6 {[%emt 0:02:11]} 6. Nd2 {[%emt 0:02:58]} Bd6 {[%emt 0:01:33]} 7. c4 {[%emt 0:06:35]} c6 {[%emt 0:01:54]} 8. Qb3 {[%emt 0:00:50]} b6 {[%emt 0:08:27]} 9. Rc1 {[%emt 0:07:26]} O-O {[%emt 0:02:18]} 10. Be2 {[%emt 0:05:03]} Bxe5 {[%emt 0:20:35]} 11. Bxe5 {[%emt 0:03:13]} Nbd7 {[%emt 0:04:38]} 12. Bd6 {[%emt 0:03:50]} Re8 {[%emt 0:00:05]} 13. cxd5 {[%emt 0:00:14]} cxd5 {[%emt 0:00:09]} 14. Ba6 {[%emt 0:01:02]} e5 {[%emt 0:00:39]} 15. O-O {[%emt 0:05:23]} exd4 {[%emt 0:07:11]} 16. exd4 {[%emt 0:59:26]} Re6 {[%emt 0:11:02]} 17. Qa3 {[%emt 0:00:00]} Ne8 {[%emt 0:03:08]} 18. Bg3 {[%emt 0:00:00]} Qf6 $2 {[%emt 0:00:51]} (18... Qe7 $16) 19. Bb7 $18 {[%emt 0:01:30]} Rd8 {[%emt 0:00:40]} 20. Bxd5 {[%emt 0:00:00]} (20. Qxa7 Qxd4 21. Nf3 Qxb2 $14) 20... Re2 {[%emt 0:03:04]} 21. Nf3 {[%emt 0:00:00]} Bg4 $2 {[%emt 0:01:09]} (21... Qe7 $16) 22. h3 {[%emt 0:00:00]} (22. Qxa7 Qf5 23. Bc6 Bxf3 $18) 22... Bxf3 {[%emt 0:01:52]} 23. Bxf3 {[%emt 0:00:00]} (23. Qxf3 Qxf3 24. gxf3 (24. Bxf3 Rxb2 25. a4 Rd2 $16) 24... Nf8 $14) 23... Rd2 {[%emt 0:00:01]} 24. Rfd1 {[%emt 0:00:00]} Rxd4 {[%emt 0:03:56]} 25. Rxd4 {[%emt 0:00:00]} (25. Qxa7 Ne5 26. Be2 R4d7) 25... Qxd4 {[%emt 0:00:01]} 26. Rd1 {[%emt 0:00:00]} (26. Qxa7 Ne5 $16) 26... Qf6 {[%emt 0:00:17]} 27. Qxa7 {[%emt 0:00:00]} Ne5 {[%emt 0:03:37]} 28. Rxd8 {[%emt 0:00:00]} Nxf3+ {[%emt 0:00:14]} 29. gxf3 {[%emt 0:00:00]} Qxd8 {[%emt 0:00:07]} 30. Kg2 {[%emt 0:00:00]} f5 {[%emt 0:02:33]} (30... Nd6 {was called for.} 31. a4 Nc4) 31. Qa4 $18 {[%emt 0:00:00]} Nf6 {[%emt 0:01:23]} 32. Qc6 {[%emt 0:00:00]} Qd5 {[%emt 0:03:03]} (32... Kh7 $142 33. Qe6 Kg6) 33. Qxb6 $18 {[%emt 0:00:00]} Qxa2 $2 {[%emt 0:00:17]} (33... Kf7 34. a4 Qd7) 34. Be5 $18 {[%emt 0:00:00]} Kf7 {[%emt 0:00:48]} 35. Bxf6 {[%emt 0:00:00]} gxf6 {[%emt 0:00:03]} 36. b4 {[%emt 0:00:00]} Ke7 {[%emt 0:00:33]} 37. b5 {[%emt 0:00:00]} (37. Qc7+ $142 Ke8 38. b5 Qg8+ 39. Qg3) 37... Qg8+ $18 {[%emt 0:00:23]} 38. Kh2 {[%emt 0:00:00]} Qd5 {[%emt 0:00:14]} 39. Qe3+ {[%emt 0:00:00]} (39. Qb8 $142 Qxf3 40. Qg3 (40. Qc7+ Ke6 $18)) 39... Kd7 {[%emt 0:00:21]} 40. Qxh6 {[%emt 0:00:00]} Qxf3 {[%emt 0:01:27]} 41. Qd2+ {[%emt 0:50:42]} (41. Qxf6 Qxf2+ 42. Kh1 Qf1+ 43. Kh2 Qf2+ 44. Kh1 Qf3+ 45. Kh2 Qf2+ $11) 41... Kc7 {[%emt 0:50:31]} 42. Qd4 {[%emt 0:00:39]} (42. Qa5+ $142 Kd7 43. Qa7+ Kd8 44. Qb6+ Ke7 45. Qe3+ Qe4 46. Qxe4+ fxe4 47. Kg3) 42... f4 {[%emt 0:00:00]} 43. Qc5+ {[%emt 0:00:00]} (43. Qxf6 Qxf2+ 44. Kh1 Qf1+ 45. Kh2 Qf2+ (45... Qxb5 46. Qxf4+ Kd7 47. h4 $11) 46. Kh1 Qf3+ 47. Kg1 Qg3+ (47... Qxh3 48. Qc6+ Kb8 49. Qd6+ Kb7 50. Qc6+ Kb8 51. Qb6+ Kc8 52. Qa6+ Kd7 53. Qc6+ Ke7 54. Qc5+ Kd8 55. Qd6+ Qd7 56. Qf8+ Qe8 57. Qxe8+ Kxe8 58. Kg2 $11) 48. Kf1 Qxh3+ 49. Kg1 Qe3+ 50. Kf1 Qf3+ 51. Ke1 Qe4+ 52. Kd2 Qe3+ 53. Kc2 Qe2+ 54. Kc3 Qe1+ (54... Qxb5 55. Qxf4+ Kb7 56. Qh4 $11) 55. Kd3 Qe3+ 56. Kc2 f3 $11) 43... Kb7 {[%emt 0:00:00]} 44. Qc6+ {[%emt 0:00:00]} Qxc6 {[%emt 0:00:00]} 45. bxc6+ {[%emt 0:00:00]} Kxc6 {[%emt 0:00:00]} 46. Kg2 {[%emt 0:00:00]} Kd5 {[%emt 0:00:00]} 47. Kf3 {[%emt 0:00:00]} Ke5 {[%emt 0:00:00]} 48. Kg4 {[%emt 0:00:00]} Ke4 {[%emt 0:00:00]} 49. h4 {[%emt 0:00:00]} f5+ {[%emt 0:00:00]} 50. Kg5 {[%emt 0:00:00]} f3 {[%emt 0:00:00]} 51. h5 {[%emt 0:00:00]} Kd3 {[%emt 0:00:00]} 52. h6 {[%emt 0:00:00]} (52. Kxf5 Ke2 $11) 52... Ke2 {[%emt 0:00:00]} 53. h7 {[%emt 0:00:00]} (53. Kxf5 Kxf2 54. h7 Kg2 $11) 53... Kxf2 {[%emt 0:00:00]} 54. h8=Q {[%emt 0:00:00]} (54. h8=R Kg1 55. Rh3 (55. Kxf5 f2 $11) 55... f2 56. Rg3+ (56. Kxf5 f1=Q+ 57. Kg4 Qd1+ 58. Kg5 Qd5+ 59. Kf6 Qd6+ 60. Kg5 Qe5+ 61. Kg4 Qe4+ 62. Kh5 Kf2 63. Rh4 Qf5+ 64. Kh6 Kg3 65. Rh5 Qf6+ 66. Kh7 Kg4 67. Rh6 Qf7+ 68. Kh8 Kf5 69. Rh1 Qe8+ 70. Kg7 Qe5+ 71. Kf8 Qb8+ 72. Ke7 Qb7+ 73. Kd6 Qxh1 74. Kc5 Qe4 75. Kb5 Ke5 76. Kb6 Qc4 77. Kb7 Kd6 78. Kb6 Qb4+ 79. Ka6 Kc7 80. Ka7 Qb7#) 56... Kh1 $11) 54... Kg1 {[%emt 0:00:00]} 55. Qh3 {[%emt 0:00:00]} ({Weaker is} 55. Kxf5 f2 $11) 55... f2 {[%emt 0:00:00]} 56. Qg3+ {[%emt 0:00:00]} ({Worse is} 56. Qxf5 f1=Q $11) 56... Kf1 {[%emt 0:00:00]} 57. Kf4 {[%emt 0:00:00]} Ke2 {[%emt 0:00:00]} 58. Qe3+ {[%emt 0:00:00]} ({And not} 58. Kxf5 f1=Q+ 59. Kg6 Qb1+ 60. Kg5 Qc1+ 61. Kh5 Qc5+ 62. Qg5 Qxg5+ 63. Kxg5 $11) 58... Kf1 {[%emt 0:00:00]} 59. Kf3 {[%emt 0:00:00]} 1-0

[Event "4NCL 2nd Div 2023-24"]
[Site "Daventry"]
[Date "2024.05.05"]
[Round "10.13"]
[White "Hryshchenko, Kamila"]
[Black "Sowray, Peter J"]
[Result "1-0"]
[ECO "C84"]
[WhiteElo "2146"]
[BlackElo "2206"]
[Annotator "RC"]
[PlyCount "67"]
[EventDate "2023.11.11"]
[EventType "team-tourn"]
[EventCountry "ENG"]
[SourceTitle "playchess.com"]
[Source "ChessBase"]
[SourceQuality "1"]
[TimeControl "40/6000+30:3000+30"]

1. e4 {[%emt 0:00:02]} e5 {[%emt 0:00:15]} 2. Nf3 {[%emt 0:00:06]} Nc6 {[%emt 0:00:05]} 3. Bb5 {[%emt 0:00:06]} a6 {[%emt 0:00:07]} 4. Ba4 {[%emt 0:00:04]} Nf6 {[%emt 0:00:10]} 5. d4 {[%emt 0:00:04]} exd4 {[%emt 0:01:24]} 6. O-O {[%emt 0:00:28]} Be7 {[%emt 0:00:53]} 7. Re1 {[%emt 0:00:04]} b5 {[%emt 0:01:37]} 8. e5 {[%emt 0:02:21]} Nxe5 {[%emt 0:00:19]} 9. Nxe5 {[%emt 0:00:19]} bxa4 {[%emt 0:00:19]} 10. Qxd4 {[%emt 0:00:06]} O-O {[%emt 0:02:17]} 11. Qxa4 {[%emt 0:00:11]} Rb8 {[%emt 0:02:00]} 12. Nd3 {[%emt 0:00:19]} d5 {[%emt 0:01:07]} 13. Nc3 {[%emt 0:03:01]} c5 {[%emt 0:08:10]} 14. Bf4 {[%emt 0:07:26]} Rb6 {[%emt 0:06:49]} 15. Rad1 {[%emt 0:11:15]} d4 {[%emt 0:12:33]} 16. Ne5 {[%emt 0:08:37]} Bb7 {[%emt 0:07:17]} 17. Qa3 {[%emt 0:20:57]} Re6 {[%emt 0:14:31]} 18. Qb3 {[%emt 0:12:03]} Rb6 {[%emt 0:08:58]} 19. Qa3 {[%emt 0:00:23]} Bd6 {[%emt 0:06:47]} 20. Na4 {[%emt 0:03:18]} Rb4 {[%emt 0:11:58]} 21. c3 {[%emt 0:28:48]} dxc3 {[%emt 0:00:58]} 22. Nxf7 {[%emt 0:00:13]} Rxf7 {[%emt 0:01:52]} 23. Rxd6 {[%emt 0:00:05]} Qa5 {[%emt 0:02:56]} 24. Nxc5 {[%emt 0:07:36]} Qxc5 {[%emt 0:07:12]} 25. Rd8+ {[%emt 0:01:50]} Rf8 {[%emt 0:00:16]} 26. Bd6 {[%emt 0:00:30]} Rxd8 {[%emt 0:02:28]} 27. Bxc5 {[%emt 0:00:04]} Rg4 {[%emt 0:00:40]} 28. g3 {[%emt 0:01:37]} Ne4 {[%emt 0:01:27]} 29. f3 {[%emt 0:00:32]} Rd2 {[%emt 0:03:51]} 30. bxc3 {[%emt 0:01:40]} Nxg3 {[%emt 0:01:23]} 31. Qb3+ {[%emt 0:00:11]} Bd5 {[%emt 0:00:05]} 32. Qb8+ {[%emt 0:00:04]} Kf7 {[%emt 0:00:07]} 33. hxg3 {[%emt 0:00:46]} Bxf3 {[%emt 0:01:15]} 34. Qf8+ {[%emt 0:00:20]} 1-0

[Event "4NCL 2nd Div 2023-24"]
[Site "Daventry"]
[Date "2024.05.05"]
[Round "10.14"]
[White "Pert, Max"]
[Black "Price, Gwilym"]
[Result "0-1"]
[ECO "B40"]
[WhiteElo "2010"]
[BlackElo "2195"]
[Annotator "RC"]
[PlyCount "68"]
[EventDate "2023.11.11"]
[EventType "team-tourn"]
[EventCountry "ENG"]
[SourceTitle "playchess.com"]
[Source "ChessBase"]
[SourceQuality "1"]
[TimeControl "40/6000+30:3000+30"]

1. e4 {[%emt 0:00:07]} c5 {[%emt 0:00:07]} 2. Nf3 {[%emt 0:00:22]} e6 {[%emt 0:00:04]} 3. b3 {[%emt 0:00:26]} b6 {[%emt 0:00:16]} 4. Bb2 {[%emt 0:00:34]} Bb7 {[%emt 0:00:17]} 5. Nc3 {[%emt 0:00:38]} d6 {[%emt 0:07:05]} 6. d4 {[%emt 0:01:21]} cxd4 {[%emt 0:00:10]} 7. Qxd4 {[%emt 0:01:20]} a6 {[%emt 0:07:56]} 8. O-O-O {[%emt 0:03:32]} Nd7 {[%emt 0:03:15]} 9. g4 {[%emt 0:07:25]} Rc8 {[%emt 0:11:29]} 10. g5 {[%emt 0:08:24]} Ne7 {[%emt 0:05:26]} 11. h4 {[%emt 0:08:29]} Ng6 {[%emt 0:12:31]} 12. Kb1 {[%emt 0:04:25]} Qc7 {[%emt 0:04:53]} 13. Qe3 {[%emt 0:20:45]} b5 {[%emt 0:12:28]} 14. h5 {[%emt 0:06:54]} Nge5 {[%emt 0:01:03]} 15. Nxe5 {[%emt 0:05:19]} dxe5 {[%emt 0:04:25]} 16. Bd3 {[%emt 0:01:02]} Bc5 {[%emt 0:01:40]} 17. Qf3 {[%emt 0:03:59]} Bd4 {[%emt 0:06:25]} 18. g6 {[%emt 0:03:22]} O-O {[%emt 0:01:02]} 19. gxh7+ {[%emt 0:06:09]} Kh8 {[%emt 0:00:33]} 20. Rdg1 {[%emt 0:04:12]} f5 {[%emt 0:15:17]} 21. h6 {[%emt 0:02:58]} g5 {[%emt 0:00:27]} 22. Qg2 {[%emt 0:06:12]} g4 {[%emt 0:01:08]} 23. Nd1 {[%emt 0:00:21]} Nc5 {[%emt 0:03:24]} 24. f3 {[%emt 0:01:25]} Nxd3 {[%emt 0:04:01]} 25. cxd3 {[%emt 0:00:13]} Bxg1 {[%emt 0:00:40]} 26. Rxg1 {[%emt 0:00:13]} Kxh7 {[%emt 0:01:01]} 27. fxg4 {[%emt 0:01:08]} fxe4 {[%emt 0:01:08]} 28. g5 {[%emt 0:00:34]} Kg6 {[%emt 0:03:05]} 29. Qh3 {[%emt 0:00:46]} Rf5 {[%emt 0:02:55]} 30. Ne3 {[%emt 0:05:01]} exd3 {[%emt 0:00:08]} 31. Nxf5 {[%emt 0:00:20]} exf5 {[%emt 0:00:02]} 32. Rc1 {[%emt 0:00:48]} d2 {[%emt 0:00:26]} 33. Rxc7 {[%emt 0:00:47]} d1=Q+ {[%emt 0:00:07]} 34. Rc1 {[%emt 0:00:06]} Be4+ {[%emt 0:00:03]} 0-1

[Event "4NCL 2nd Div 2023-24"]
[Site "Daventry"]
[Date "2024.05.05"]
[Round "10.15"]
[White "Varnam, Liam D"]
[Black "Brett, Andrew R"]
[Result "1-0"]
[ECO "B90"]
[WhiteElo "2029"]
[BlackElo "2044"]
[Annotator "NA RC"]
[PlyCount "89"]
[EventDate "2023.11.11"]
[EventType "team-tourn"]
[EventCountry "ENG"]
[SourceTitle "playchess.com"]
[Source "ChessBase"]
[SourceQuality "1"]
[TimeControl "40/6000+30:3000+30"]

1. e4 {[%emt 0:00:05]} c5 {[%emt 0:00:02]} 2. Nf3 {[%emt 0:00:11]} d6 {[%emt 0:00:06]} 3. d4 {[%emt 0:00:07]} cxd4 {[%emt 0:00:07]} 4. Nxd4 {[%emt 0:00:06]} Nf6 {[%emt 0:00:06]} 5. Nc3 {[%emt 0:00:05]} a6 {[%emt 0:00:06]} 6. h3 {[%emt 0:00:39]} Nc6 {[%emt 0:00:12]} 7. g4 {[%emt 0:05:55]} g6 {[%emt 0:00:43]} 8. Be3 {[%emt 0:01:19]} Bg7 {[%emt 0:00:21]} 9. Qd2 {[%emt 0:01:06]} O-O {[%emt 0:00:28]} 10. O-O-O {[%emt 0:00:57]} Bd7 {[%emt 0:07:51]} 11. f3 {[%emt 0:10:19]} Rc8 {[%emt 0:01:28]} 12. Nxc6 {[%emt 0:05:18]} Rxc6 {[%emt 0:07:48]} 13. Nd5 {[%emt 0:22:37]} Be6 {[%emt 0:45:22]} 14. h4 {[%emt 0:08:10]} Bxd5 {[%emt 0:31:30]} 15. exd5 {[%emt 0:00:29]} Rb6 {[%emt 0:01:33]} 16. Bd4 {[%emt 0:31:29]} e6 {[%emt 0:04:37]} 17. dxe6 {[%emt 0:02:28]} fxe6 {[%emt 0:00:25]} 18. Bxb6 {[%emt 0:10:03]} Qxb6 {[%emt 0:00:10]} 19. Qxd6 {[%emt 0:00:26]} Qe3+ {[%emt 0:01:03]} 20. Kb1 {[%emt 0:01:05]} Nd5 {[%emt 0:01:40]} 21. Rxd5 {[%emt 0:07:26]} exd5 {[%emt 0:00:05]} 22. Qxd5+ {[%emt 0:00:15]} Kh8 {[%emt 0:00:11]} 23. Bd3 {[%emt 0:00:49]} Qb6 {[%emt 0:03:43]} 24. Qb3 {[%emt 0:00:23]} Qc7 {[%emt 0:00:56]} 25. h5 {[%emt 0:00:38]} g5 {[%emt 0:00:46]} 26. Be4 {[%emt 0:00:27]} b5 {[%emt 0:00:49]} 27. h6 {[%emt 0:00:29]} Be5 {[%emt 0:00:23]} 28. Rd1 {[%emt 0:00:27]} a5 {[%emt 0:00:29]} 29. Qe6 {[%emt 0:00:28]} Qc5 {[%emt 0:00:51]} 30. Qd7 {[%emt 0:00:29]} Qc7 {[%emt 0:00:36]} 31. Qxc7 {[%emt 0:00:34]} Bxc7 {[%emt 0:00:01]} 32. Rd7 {[%emt 0:00:24]} Rd8 {[%emt 0:00:14]} 33. Rxh7+ {[%emt 0:00:18]} Kg8 {[%emt 0:00:03]} 34. Rg7+ {[%emt 0:00:06]} Kf8 {[%emt 0:00:28]} 35. Bd3 {[%emt 0:00:25]} Re8 {[%emt 0:00:21]} 36. a3 {[%emt 0:00:35]} Bf4 {[%emt 0:00:22]} 37. Rb7 {[%emt 0:00:30]} b4 {[%emt 0:00:32]} 38. axb4 {[%emt 0:00:17]} axb4 {[%emt 0:00:09]} 39. Rxb4 {[%emt 0:00:11]} Kg8 {[%emt 0:00:12]} 40. h7+ {[%emt 0:00:50]} Kh8 {[%emt 0:00:20]} 41. c4 {[%emt 0:50:50]} Re3 {[%emt 0:50:59]} 42. Be4 {[%emt 0:00:27]} Re1+ {[%emt 0:01:22]} 43. Ka2 {[%emt 0:00:12]} Rd1 {[%emt 0:00:26]} 44. c5 {[%emt 0:00:37]} Rc1 {[%emt 0:00:38]} 45. Ra4 {[%emt 0:00:34]} 1-0